[Event "Titled Tuesday Blitz October 25 Late 2022"]
[White "Ardila, Oscar Humberto"]
[Black "Luxama, Jacques Muller"]
[WhiteFideId "4404742"]
[BlackFideId "11900113"]
[WhiteElo "1898"]
[BlackElo "1931"]
[Result "1/2-1/2"]
[Round "04"]
[TimeControl "180+1"]
[Date "2022.10.26"]
[WhiteClock "0:00:52"]
[BlackClock "0:00:05"]

1. d4 {[%clk 0:02:59]}  Nf6 {[%clk 0:02:54]} 2. c4 {[%clk 0:03:00]}  g6 {[%clk 0:02:52]} 3. Nc3 {[%clk 0:03:00]}  Bg7 {[%clk 0:02:51]} 4. Nf3 {[%clk 0:03:00]}  O-O {[%clk 0:02:50]} 5. e3 {[%clk 0:03:01]}  d5 {[%clk 0:02:49]} 6. Be2 {[%clk 0:03:00]}  c6 {[%clk 0:02:33]} 7. O-O {[%clk 0:03:00]}  Bg4 {[%clk 0:02:31]} 8. cxd5 {[%clk 0:02:55]}  cxd5 {[%clk 0:02:30]} 9. h3 {[%clk 0:02:56]}  Bxf3 {[%clk 0:02:29]} 10. Bxf3 {[%clk 0:02:57]}  e6 {[%clk 0:02:29]} 11. Qb3 {[%clk 0:02:56]}  b6 {[%clk 0:02:28]} 12. Bd2 {[%clk 0:02:56]}  Nc6 {[%clk 0:02:26]} 13. Rac1 {[%clk 0:02:52]}  Na5 {[%clk 0:02:24]} 14. Qc2 {[%clk 0:02:47]}  Nc4 {[%clk 0:02:24]} 15. b3 {[%clk 0:02:46]}  Nxd2 {[%clk 0:02:22]} 16. Qxd2 {[%clk 0:02:46]}  Qd7 {[%clk 0:02:18]} 17. a4 {[%clk 0:02:43]}  Rfc8 {[%clk 0:02:16]} 18. Nb5 {[%clk 0:02:43]}  a6 {[%clk 0:02:12]} 19. Nc3 {[%clk 0:02:35]}  Bf8 {[%clk 0:02:12]} 20. Qb2 {[%clk 0:02:34]}  Bb4 {[%clk 0:02:04]} 21. Na2 {[%clk 0:02:32]}  Qd6 {[%clk 0:02:03]} 22. Rxc8+ {[%clk 0:02:30]}  Rxc8 {[%clk 0:02:01]} 23. Rc1 {[%clk 0:02:29]}  Rxc1+ {[%clk 0:01:46]} 24. Qxc1 {[%clk 0:02:29]}  a5 {[%clk 0:01:40]} 25. Qc8+ {[%clk 0:02:29]}  Kg7 {[%clk 0:01:39]} 26. Qb7 {[%clk 0:02:26]}  Bd2 {[%clk 0:01:06]} 27. Qc8 {[%clk 0:02:14]}  Qa3 {[%clk 0:01:02]} 28. Qc2 {[%clk 0:02:14]}  Bb4 {[%clk 0:00:58]} 29. g4 {[%clk 0:02:13]}  h6 {[%clk 0:00:56]} 30. Kg2 {[%clk 0:02:12]}  Ne8 {[%clk 0:00:53]} 31. h4 {[%clk 0:02:10]}  Nd6 {[%clk 0:00:52]} 32. g5 {[%clk 0:01:39]}  Nf5 {[%clk 0:00:51]} 33. Kh3 {[%clk 0:01:35]}  hxg5 {[%clk 0:00:45]} 34. hxg5 {[%clk 0:01:35]}  Be7 {[%clk 0:00:43]} 35. Bg4 {[%clk 0:01:24]}  Bxg5 {[%clk 0:00:41]} 36. Bxf5 {[%clk 0:01:24]}  gxf5 {[%clk 0:00:41]} 37. f4 {[%clk 0:01:19]}  Bf6 {[%clk 0:00:39]} 38. Kg3 {[%clk 0:01:18]}  Qf8 {[%clk 0:00:37]} 39. Kf3 {[%clk 0:01:17]}  Qh8 {[%clk 0:00:36]} 40. Qg2+ {[%clk 0:01:17]}  Kf8 {[%clk 0:00:35]} 41. Ke2 {[%clk 0:01:13]}  Qh5+ {[%clk 0:00:34]} 42. Kd2 {[%clk 0:01:13]}  Qg4 {[%clk 0:00:30]} 43. Qe2 {[%clk 0:01:07]}  Qg1 {[%clk 0:00:27]} 44. Qe1 {[%clk 0:01:05]}  Qg2+ {[%clk 0:00:21]} 45. Qe2 {[%clk 0:01:05]}  Qe4 {[%clk 0:00:20]} 46. Kc1 {[%clk 0:00:57]}  Be7 {[%clk 0:00:18]} 47. Nc3 {[%clk 0:00:56]}  Ba3+ {[%clk 0:00:17]} 48. Kd2 {[%clk 0:00:56]}  Qh1 {[%clk 0:00:17]} 49. Qe1 {[%clk 0:00:54]}  Qxe1+ {[%clk 0:00:16]} 50. Kxe1 {[%clk 0:00:54]}  Bb4 {[%clk 0:00:17]} 51. Kd2 {[%clk 0:00:54]}  Bxc3+ {[%clk 0:00:17]} 52. Kxc3 {[%clk 0:00:55]}  Kg7 {[%clk 0:00:17]} 53. b4 {[%clk 0:00:56]}  Kg6 {[%clk 0:00:16]} 54. bxa5 {[%clk 0:00:55]}  bxa5 {[%clk 0:00:16]} 55. Kd3 {[%clk 0:00:55]}  Kh5 {[%clk 0:00:17]} 56. Ke2 {[%clk 0:00:56]}  Kg4 {[%clk 0:00:18]} 57. Kf2 {[%clk 0:00:56]}  Kh3 {[%clk 0:00:18]} 58. Kf3 {[%clk 0:00:56]}  Kh2 {[%clk 0:00:18]} 59. Kf2 {[%clk 0:00:57]}  Kh3 {[%clk 0:00:16]} 60. Kf3 {[%clk 0:00:57]}  Kh4 {[%clk 0:00:16]} 61. Kf2 {[%clk 0:00:56]}  Kg4 {[%clk 0:00:17]} 62. Kg2 {[%clk 0:00:57]}  f6 {[%clk 0:00:15]} 63. Kf2 {[%clk 0:00:57]}  Kh3 {[%clk 0:00:11]} 64. Kf3 {[%clk 0:00:57]}  Kh4 {[%clk 0:00:10]} 65. Kf2 {[%clk 0:00:57]}  Kh5 {[%clk 0:00:11]} 66. Kg3 {[%clk 0:00:56]}  Kg6 {[%clk 0:00:11]} 67. Kh4 {[%clk 0:00:57]}  Kh6 {[%clk 0:00:09]} 68. Kg3 {[%clk 0:00:57]}  Kh5 {[%clk 0:00:09]} 69. Kh3 {[%clk 0:00:57]}  Kg6 {[%clk 0:00:02]} 70. Kg3 {[%clk 0:00:56]}  Kh6 {[%clk 0:00:02]} 71. Kh4 {[%clk 0:00:56]}  Kg6 {[%clk 0:00:03]} 72. Kg3 {[%clk 0:00:56]}  Kh6 {[%clk 0:00:04]} 73. Kh4 {[%clk 0:00:53]}  Kg6 {[%clk 0:00:05]} 74. Kg3 {[%clk 0:00:52]} 1/2-1/2


[Site "https://www.chess.com"]

[Event "Titled Tuesday Blitz October 25 Late 2022"]
[White "Atanasov, Anthony"]
[Black "D`Arruda, Ricardo D."]
[WhiteFideId "2623897"]
[BlackFideId "100692"]
[WhiteElo "2048"]
[BlackElo "2452"]
[Result "1-0"]
[Round "04"]
[TimeControl "180+1"]
[Date "2022.10.26"]
[WhiteClock "0:00:51"]
[BlackClock "0:00:39"]

1. e4 {[%clk 0:03:00]}  c5 {[%clk 0:02:59]} 2. Nf3 {[%clk 0:03:00]}  Nc6 {[%clk 0:02:59]} 3. d4 {[%clk 0:02:57]}  cxd4 {[%clk 0:03:00]} 4. Nxd4 {[%clk 0:02:57]}  e5 {[%clk 0:03:00]} 5. Nb5 {[%clk 0:02:56]}  a6 {[%clk 0:03:00]} 6. Nd6+ {[%clk 0:02:56]}  Bxd6 {[%clk 0:03:01]} 7. Qxd6 {[%clk 0:02:56]}  Qe7 {[%clk 0:03:02]} 8. Qxe7+ {[%clk 0:02:50]}  Ngxe7 {[%clk 0:03:03]} 9. c4 {[%clk 0:02:51]}  d6 {[%clk 0:03:01]} 10. Nc3 {[%clk 0:02:49]}  Be6 {[%clk 0:03:01]} 11. b3 {[%clk 0:02:48]}  O-O-O {[%clk 0:02:49]} 12. Be2 {[%clk 0:02:47]}  Nd4 {[%clk 0:02:46]} 13. Bd1 {[%clk 0:02:41]}  Kb8 {[%clk 0:02:34]} 14. Be3 {[%clk 0:02:37]}  Nec6 {[%clk 0:02:34]} 15. Kd2 {[%clk 0:02:35]}  f5 {[%clk 0:02:29]} 16. Re1 {[%clk 0:02:28]}  f4 {[%clk 0:02:28]} 17. Bxd4 {[%clk 0:02:27]}  Nxd4 {[%clk 0:02:28]} 18. Ne2 {[%clk 0:02:26]}  Nxe2 {[%clk 0:02:28]} 19. Bxe2 {[%clk 0:02:27]}  Kc7 {[%clk 0:02:18]} 20. Rad1 {[%clk 0:02:26]}  a5 {[%clk 0:02:17]} 21. Kc3 {[%clk 0:02:17]}  g5 {[%clk 0:02:14]} 22. h3 {[%clk 0:02:11]}  b6 {[%clk 0:02:12]} 23. a3 {[%clk 0:02:11]}  h6 {[%clk 0:02:08]} 24. b4 {[%clk 0:02:11]}  axb4+ {[%clk 0:02:07]} 25. axb4 {[%clk 0:02:12]}  Ra8 {[%clk 0:02:07]} 26. Ra1 {[%clk 0:02:09]}  Kb7 {[%clk 0:02:03]} 27. Bg4 {[%clk 0:02:03]}  Bf7 {[%clk 0:01:59]} 28. Red1 {[%clk 0:02:02]}  Rxa1 {[%clk 0:01:57]} 29. Rxa1 {[%clk 0:02:01]}  Ra8 {[%clk 0:01:56]} 30. Rxa8 {[%clk 0:01:56]}  Kxa8 {[%clk 0:01:57]} 31. g3 {[%clk 0:01:52]}  Kb7 {[%clk 0:01:53]} 32. h4 {[%clk 0:01:52]}  Kc6 {[%clk 0:01:49]} 33. Bf5 {[%clk 0:01:50]}  Bg8 {[%clk 0:01:42]} 34. Bg6 {[%clk 0:01:42]}  Be6 {[%clk 0:01:41]} 35. Be8+ {[%clk 0:01:38]}  Kc7 {[%clk 0:01:40]} 36. Kd3 {[%clk 0:01:37]}  Bh3 {[%clk 0:01:40]} 37. Bg6 {[%clk 0:01:30]}  Bf1+ {[%clk 0:01:39]} 38. Kc3 {[%clk 0:01:31]}  Kd7 {[%clk 0:01:33]} 39. Bf5+ {[%clk 0:01:23]}  Ke7 {[%clk 0:01:33]} 40. Bc8 {[%clk 0:01:18]}  Kf6 {[%clk 0:01:32]} 41. Bf5 {[%clk 0:01:14]}  Ke7 {[%clk 0:01:25]} 42. Bg4 {[%clk 0:01:11]}  Kf6 {[%clk 0:01:24]} 43. Bf5 {[%clk 0:01:11]}  Be2 {[%clk 0:01:23]} 44. Kb3 {[%clk 0:01:07]}  Bd1+ {[%clk 0:01:22]} 45. Ka3 {[%clk 0:01:07]}  Be2 {[%clk 0:01:21]} 46. Kb3 {[%clk 0:01:04]}  Bf1 {[%clk 0:01:20]} 47. Bd7 {[%clk 0:01:00]}  Bd3 {[%clk 0:01:19]} 48. Bc6 {[%clk 0:01:00]}  Be2 {[%clk 0:01:18]} 49. Bd5 {[%clk 0:00:59]}  Bd3 {[%clk 0:01:17]} 50. Ka4 {[%clk 0:00:59]}  gxh4 {[%clk 0:00:54]} 51. gxh4 {[%clk 0:01:00]}  Kg6 {[%clk 0:00:54]} 52. Kb5 {[%clk 0:01:00]}  Kh5 {[%clk 0:00:54]} 53. Kxb6 {[%clk 0:01:00]}  Kxh4 {[%clk 0:00:54]} 54. b5 {[%clk 0:00:52]}  Kg4 {[%clk 0:00:49]} 55. Kc7 {[%clk 0:00:51]}  Kf3 {[%clk 0:00:39]} 56. b6 {[%clk 0:00:51]} 1-0


[Site "https://www.chess.com"]

[Event "Titled Tuesday Blitz October 25 Late 2022"]
[White "Averjanov, Alexey"]
[Black "Dzierzak, Radoslaw"]
[WhiteFideId "14109867"]
[BlackFideId "1161407"]
[WhiteElo "2671"]
[BlackElo "2111"]
[Result "1-0"]
[Round "04"]
[TimeControl "180+1"]
[Date "2022.10.26"]
[WhiteClock "0:00:53"]
[BlackClock "0:00:02"]

1. d4 {[%clk 0:03:00]}  Nf6 {[%clk 0:02:59]} 2. c4 {[%clk 0:03:01]}  e6 {[%clk 0:03:00]} 3. Nf3 {[%clk 0:03:01]}  Bb4+ {[%clk 0:03:00]} 4. Nbd2 {[%clk 0:03:00]}  b6 {[%clk 0:03:00]} 5. g3 {[%clk 0:03:01]}  Bb7 {[%clk 0:02:59]} 6. Bg2 {[%clk 0:03:01]}  O-O {[%clk 0:03:00]} 7. O-O {[%clk 0:03:01]}  d5 {[%clk 0:03:00]} 8. b3 {[%clk 0:03:00]}  Nbd7 {[%clk 0:02:53]} 9. Bb2 {[%clk 0:03:00]}  Be7 {[%clk 0:02:46]} 10. Rc1 {[%clk 0:02:59]}  a5 {[%clk 0:02:41]} 11. e3 {[%clk 0:02:59]}  Qb8 {[%clk 0:02:37]} 12. Qe2 {[%clk 0:02:58]}  Rc8 {[%clk 0:02:29]} 13. Rfd1 {[%clk 0:02:58]}  Qa7 {[%clk 0:02:29]} 14. Ne5 {[%clk 0:02:58]}  Nf8 {[%clk 0:02:23]} 15. e4 {[%clk 0:02:56]}  a4 {[%clk 0:02:17]} 16. exd5 {[%clk 0:02:53]}  exd5 {[%clk 0:02:15]} 17. cxd5 {[%clk 0:02:41]}  Nxd5 {[%clk 0:01:50]} 18. Nc6 {[%clk 0:02:40]}  Bxc6 {[%clk 0:01:46]} 19. Rxc6 {[%clk 0:02:41]}  Nb4 {[%clk 0:01:39]} 20. Qxe7 {[%clk 0:02:34]}  Nxc6 {[%clk 0:01:38]} 21. Bxc6 {[%clk 0:02:34]}  Rab8 {[%clk 0:01:32]} 22. Bd5 {[%clk 0:02:30]}  Kh8 {[%clk 0:01:20]} 23. Bxf7 {[%clk 0:02:21]}  Rb7 {[%clk 0:01:10]} 24. Qg5 {[%clk 0:01:42]}  c5 {[%clk 0:01:05]} 25. Bd5 {[%clk 0:01:37]}  Re7 {[%clk 0:00:58]} 26. dxc5 {[%clk 0:01:33]}  Rxc5 {[%clk 0:00:57]} 27. Qf5 {[%clk 0:01:19]}  Ng6 {[%clk 0:00:46]} 28. Ne4 {[%clk 0:01:16]}  Rc2 {[%clk 0:00:35]} 29. Ng5 {[%clk 0:01:12]}  Rcc7 {[%clk 0:00:27]} 30. Rd4 {[%clk 0:01:02]}  Re5 {[%clk 0:00:12]} 31. Qxg6 {[%clk 0:00:55]}  Rxd5 {[%clk 0:00:02]} 32. Qxh7# {[%clk 0:00:53]} 1-0


[Site "https://www.chess.com"]

[Event "Titled Tuesday Blitz October 25 Late 2022"]
[White "Babazada, Khazar"]
[Black "Goryachkina, Aleksandra"]
[WhiteFideId "13413554"]
[BlackFideId "4147103"]
[WhiteElo "2367"]
[BlackElo "2484"]
[Result "1/2-1/2"]
[Round "04"]
[TimeControl "180+1"]
[Date "2022.10.26"]
[WhiteClock "0:01:51"]
[BlackClock "0:00:07"]

1. c4 {[%clk 0:03:00]}  e6 {[%clk 0:02:59]} 2. Nf3 {[%clk 0:02:59]}  d5 {[%clk 0:02:59]} 3. g3 {[%clk 0:03:00]}  Nf6 {[%clk 0:02:58]} 4. Bg2 {[%clk 0:03:00]}  dxc4 {[%clk 0:02:58]} 5. Qa4+ {[%clk 0:03:00]}  Bd7 {[%clk 0:02:55]} 6. Qxc4 {[%clk 0:03:00]}  c5 {[%clk 0:02:55]} 7. O-O {[%clk 0:02:59]}  Nc6 {[%clk 0:02:55]} 8. Nc3 {[%clk 0:02:59]}  Rc8 {[%clk 0:02:52]} 9. d3 {[%clk 0:02:56]}  Be7 {[%clk 0:02:52]} 10. Bd2 {[%clk 0:02:53]}  O-O {[%clk 0:02:51]} 11. Rac1 {[%clk 0:02:53]}  a6 {[%clk 0:02:30]} 12. Ne4 {[%clk 0:02:44]}  b5 {[%clk 0:02:11]} 13. Qc2 {[%clk 0:02:43]}  Nd4 {[%clk 0:02:04]} 14. Nxd4 {[%clk 0:02:41]}  cxd4 {[%clk 0:02:04]} 15. Nxf6+ {[%clk 0:02:42]}  Bxf6 {[%clk 0:02:04]} 16. Qb3 {[%clk 0:02:42]}  Qb6 {[%clk 0:02:01]} 17. a4 {[%clk 0:02:41]}  Bc6 {[%clk 0:01:49]} 18. a5 {[%clk 0:02:41]}  Qb7 {[%clk 0:01:48]} 19. Rxc6 {[%clk 0:02:42]}  Rxc6 {[%clk 0:01:48]} 20. Bxc6 {[%clk 0:02:42]}  Qxc6 {[%clk 0:01:48]} 21. Rc1 {[%clk 0:02:43]}  Qb7 {[%clk 0:01:10]} 22. Qa3 {[%clk 0:02:37]}  Rc8 {[%clk 0:01:05]} 23. Rxc8+ {[%clk 0:02:36]}  Qxc8 {[%clk 0:01:05]} 24. Qd6 {[%clk 0:02:37]}  h6 {[%clk 0:01:02]} 25. Bb4 {[%clk 0:02:37]}  Kh7 {[%clk 0:00:38]} 26. Bc5 {[%clk 0:02:37]}  e5 {[%clk 0:00:30]} 27. b4 {[%clk 0:02:35]}  Qe6 {[%clk 0:00:26]} 28. Qxe6 {[%clk 0:02:35]}  fxe6 {[%clk 0:00:26]} 29. Kg2 {[%clk 0:02:35]}  Kg6 {[%clk 0:00:26]} 30. Kf3 {[%clk 0:02:36]}  Kf5 {[%clk 0:00:23]} 31. Bd6 {[%clk 0:02:34]}  h5 {[%clk 0:00:20]} 32. h3 {[%clk 0:02:34]}  g6 {[%clk 0:00:18]} 33. e4+ {[%clk 0:02:30]}  dxe3 {[%clk 0:00:13]} 34. fxe3 {[%clk 0:02:30]}  Bg7 {[%clk 0:00:08]} 35. Bc7 {[%clk 0:02:23]}  Bf8 {[%clk 0:00:06]} 36. Bd8 {[%clk 0:02:20]}  g5 {[%clk 0:00:04]} 37. g4+ {[%clk 0:02:19]}  hxg4+ {[%clk 0:00:04]} 38. hxg4+ {[%clk 0:02:20]}  Kg6 {[%clk 0:00:04]} 39. Ke4 {[%clk 0:02:21]}  Bxb4 {[%clk 0:00:04]} 40. Kxe5 {[%clk 0:02:22]}  Kf7 {[%clk 0:00:04]} 41. Bxg5 {[%clk 0:02:21]}  Bxa5 {[%clk 0:00:04]} 42. e4 {[%clk 0:02:12]}  Bc3+ {[%clk 0:00:03]} 43. Kd6 {[%clk 0:01:57]}  b4 {[%clk 0:00:04]} 44. Bc1 {[%clk 0:01:56]}  b3 {[%clk 0:00:05]} 45. Kc5 {[%clk 0:01:50]}  b2 {[%clk 0:00:05]} 46. Bxb2 {[%clk 0:01:50]}  Bxb2 {[%clk 0:00:06]} 47. d4 {[%clk 0:01:51]}  a5 {[%clk 0:00:06]} 48. d5 {[%clk 0:01:52]}  exd5 {[%clk 0:00:06]} 49. exd5 {[%clk 0:01:53]}  a4 {[%clk 0:00:06]} 50. Kb4 {[%clk 0:01:49]}  a3 {[%clk 0:00:07]} 51. Kb3 {[%clk 0:01:50]}  Ke7 {[%clk 0:00:06]} 52. g5 {[%clk 0:01:50]}  Kd6 {[%clk 0:00:06]} 53. g6 {[%clk 0:01:50]}  Kxd5 {[%clk 0:00:07]} 54. g7 {[%clk 0:01:51]}  Bxg7 {[%clk 0:00:07]} 55. Kxa3 {[%clk 0:01:51]} 1/2-1/2


[Site "https://www.chess.com"]

[Event "Titled Tuesday Blitz October 25 Late 2022"]
[White "Baches Garcia, Guillermo"]
[Black "Fernandez De La Vara, Arnaldo"]
[WhiteFideId "2209764"]
[BlackFideId "3518388"]
[WhiteElo "2443"]
[BlackElo "2387"]
[Result "0-1"]
[Round "04"]
[TimeControl "180+1"]
[Date "2022.10.26"]
[WhiteClock "0:00:01"]
[BlackClock "0:01:18"]

1. e4 {[%clk 0:03:00]}  c5 {[%clk 0:03:00]} 2. Nf3 {[%clk 0:03:01]}  e6 {[%clk 0:03:00]} 3. c4 {[%clk 0:03:00]}  Qc7 {[%clk 0:02:59]} 4. Nc3 {[%clk 0:02:58]}  a6 {[%clk 0:02:59]} 5. Be2 {[%clk 0:02:58]}  Nf6 {[%clk 0:02:59]} 6. O-O {[%clk 0:02:56]}  Nc6 {[%clk 0:02:58]} 7. a3 {[%clk 0:02:56]}  b6 {[%clk 0:02:54]} 8. d3 {[%clk 0:02:54]}  Bb7 {[%clk 0:02:52]} 9. Rb1 {[%clk 0:02:54]}  Bd6 {[%clk 0:02:38]} 10. b4 {[%clk 0:02:29]}  Ng4 {[%clk 0:02:20]} 11. h3 {[%clk 0:02:16]}  Nge5 {[%clk 0:02:18]} 12. Nxe5 {[%clk 0:01:41]}  Bxe5 {[%clk 0:02:18]} 13. Na4 {[%clk 0:01:36]}  Nd4 {[%clk 0:02:09]} 14. bxc5 {[%clk 0:01:29]}  b5 {[%clk 0:02:09]} 15. f4 {[%clk 0:00:59]}  Nxe2+ {[%clk 0:02:07]} 16. Qxe2 {[%clk 0:00:54]}  Bd4+ {[%clk 0:02:08]} 17. Be3 {[%clk 0:00:49]}  Bxe3+ {[%clk 0:02:08]} 18. Qxe3 {[%clk 0:00:50]}  bxa4 {[%clk 0:02:09]} 19. d4 {[%clk 0:00:49]}  Rc8 {[%clk 0:01:58]} 20. Rb6 {[%clk 0:00:35]}  O-O {[%clk 0:01:35]} 21. d5 {[%clk 0:00:28]}  Ba8 {[%clk 0:01:30]} 22. Rxa6 {[%clk 0:00:23]}  f5 {[%clk 0:01:25]} 23. exf5 {[%clk 0:00:06]}  exd5 {[%clk 0:01:22]} 24. cxd5 {[%clk 0:00:01]}  Qxc5 {[%clk 0:01:22]} 25. Qxc5 {[%clk 0:00:01]}  Rxc5 {[%clk 0:01:23]} 26. Re1 {[%clk 0:00:01]}  Rxd5 {[%clk 0:01:18]} 27. Re7 {[%clk 0:00:01]}  Bc6 {[%clk 0:01:18]} 0-1


[Site "https://www.chess.com"]

[Event "Titled Tuesday Blitz October 25 Late 2022"]
[White "Ballester Llagaria, Luis Eduardo"]
[Black "Matinian, Nikita"]
[WhiteFideId "2297620"]
[BlackFideId "24129100"]
[WhiteElo "2344"]
[BlackElo "2422"]
[Result "1-0"]
[Round "04"]
[TimeControl "180+1"]
[Date "2022.10.26"]
[WhiteClock "0:00:13"]
[BlackClock "0:00:08"]

1. e4 {[%clk 0:03:00]}  c5 {[%clk 0:02:58]} 2. Nf3 {[%clk 0:03:00]}  d6 {[%clk 0:02:59]} 3. d4 {[%clk 0:03:00]}  cxd4 {[%clk 0:03:00]} 4. Nxd4 {[%clk 0:03:01]}  Nf6 {[%clk 0:03:01]} 5. Nc3 {[%clk 0:03:02]}  g6 {[%clk 0:03:01]} 6. Be3 {[%clk 0:03:02]}  Nc6 {[%clk 0:03:02]} 7. Bb5 {[%clk 0:03:01]}  Bd7 {[%clk 0:03:01]} 8. f3 {[%clk 0:02:36]}  Bg7 {[%clk 0:03:00]} 9. Qd2 {[%clk 0:02:37]}  O-O {[%clk 0:03:01]} 10. O-O-O {[%clk 0:02:37]}  Nxd4 {[%clk 0:02:58]} 11. Bxd4 {[%clk 0:02:35]}  Bxb5 {[%clk 0:02:58]} 12. Nxb5 {[%clk 0:02:36]}  a6 {[%clk 0:02:58]} 13. Nc3 {[%clk 0:02:36]}  Rc8 {[%clk 0:02:58]} 14. Kb1 {[%clk 0:02:35]}  b5 {[%clk 0:02:56]} 15. h4 {[%clk 0:02:32]}  h5 {[%clk 0:02:56]} 16. g4 {[%clk 0:02:30]}  hxg4 {[%clk 0:02:56]} 17. h5 {[%clk 0:02:30]}  gxh5 {[%clk 0:02:11]} 18. fxg4 {[%clk 0:02:19]}  e5 {[%clk 0:02:11]} 19. Be3 {[%clk 0:01:51]}  b4 {[%clk 0:02:10]} 20. Nd5 {[%clk 0:01:40]}  Nxe4 {[%clk 0:02:11]} 21. Qg2 {[%clk 0:01:36]}  hxg4 {[%clk 0:01:32]} 22. Qxg4 {[%clk 0:01:15]}  f5 {[%clk 0:01:30]} 23. Qg6 {[%clk 0:01:08]}  Rf6 {[%clk 0:01:27]} 24. Qh7+ {[%clk 0:01:00]}  Kf7 {[%clk 0:01:26]} 25. Rdg1 {[%clk 0:00:58]}  Qh8 {[%clk 0:00:50]} 26. Nxf6 {[%clk 0:00:53]}  Qxh7 {[%clk 0:00:46]} 27. Rxh7 {[%clk 0:00:51]}  Kxf6 {[%clk 0:00:40]} 28. Rhxg7 {[%clk 0:00:51]}  f4 {[%clk 0:00:40]} 29. Bb6 {[%clk 0:00:40]}  d5 {[%clk 0:00:34]} 30. Kc1 {[%clk 0:00:31]}  d4 {[%clk 0:00:33]} 31. Rc7 {[%clk 0:00:26]}  Rh8 {[%clk 0:00:28]} 32. Rc6+ {[%clk 0:00:18]}  Kf5 {[%clk 0:00:28]} 33. Bc7 {[%clk 0:00:19]}  f3 {[%clk 0:00:26]} 34. Rxa6 {[%clk 0:00:15]}  Ng5 {[%clk 0:00:07]} 35. Bxe5 {[%clk 0:00:12]}  f2 {[%clk 0:00:03]} 36. Rf6+ {[%clk 0:00:09]}  Kxe5 {[%clk 0:00:02]} 37. Rxf2 {[%clk 0:00:10]}  Ne4 {[%clk 0:00:03]} 38. Re1 {[%clk 0:00:10]}  Rh4 {[%clk 0:00:02]} 39. Rfe2 {[%clk 0:00:10]}  Kd5 {[%clk 0:00:02]} 40. Rxe4 {[%clk 0:00:10]}  Rxe4 {[%clk 0:00:03]} 41. Rxe4 {[%clk 0:00:11]}  Kxe4 {[%clk 0:00:04]} 42. Kd2 {[%clk 0:00:11]}  Ke5 {[%clk 0:00:04]} 43. Ke2 {[%clk 0:00:11]}  Kd6 {[%clk 0:00:04]} 44. Kd2 {[%clk 0:00:11]}  Ke6 {[%clk 0:00:04]} 45. Kd3 {[%clk 0:00:11]}  Kd5 {[%clk 0:00:04]} 46. a4 {[%clk 0:00:11]}  bxa3 {[%clk 0:00:04]} 47. bxa3 {[%clk 0:00:11]}  Kc5 {[%clk 0:00:05]} 48. a4 {[%clk 0:00:11]}  Kd5 {[%clk 0:00:04]} 49. a5 {[%clk 0:00:11]}  Kc5 {[%clk 0:00:05]} 50. a6 {[%clk 0:00:11]}  Kb6 {[%clk 0:00:05]} 51. Kxd4 {[%clk 0:00:11]}  Kxa6 {[%clk 0:00:06]} 52. Kc5 {[%clk 0:00:12]}  Kb7 {[%clk 0:00:05]} 53. Kd6 {[%clk 0:00:12]}  Kb6 {[%clk 0:00:05]} 54. c4 {[%clk 0:00:11]}  Kb7 {[%clk 0:00:06]} 55. Kd7 {[%clk 0:00:11]}  Kb6 {[%clk 0:00:07]} 56. Kd6 {[%clk 0:00:12]}  Kb7 {[%clk 0:00:07]} 57. c5 {[%clk 0:00:12]}  Kc8 {[%clk 0:00:07]} 58. Kc6 {[%clk 0:00:12]}  Kb8 {[%clk 0:00:08]} 59. Kd7 {[%clk 0:00:13]} 1-0


[Site "https://www.chess.com"]

[Event "Titled Tuesday Blitz October 25 Late 2022"]
[White "Banzea, Alexandru-Bogdan"]
[Black "Holt, Conrad"]
[WhiteFideId "1232622"]
[BlackFideId "2034387"]
[WhiteElo "2294"]
[BlackElo "2592"]
[Result "1-0"]
[Round "04"]
[TimeControl "180+1"]
[Date "2022.10.26"]
[WhiteClock "0:00:05"]
[BlackClock "0:00:05"]

1. d4 {[%clk 0:03:00]}  d5 {[%clk 0:02:59]} 2. Nf3 {[%clk 0:03:00]}  Nf6 {[%clk 0:02:59]} 3. Bf4 {[%clk 0:03:01]}  c5 {[%clk 0:02:59]} 4. e3 {[%clk 0:02:57]}  Nc6 {[%clk 0:02:59]} 5. Nbd2 {[%clk 0:02:57]}  Bf5 {[%clk 0:02:55]} 6. dxc5 {[%clk 0:02:57]}  e6 {[%clk 0:02:55]} 7. Nd4 {[%clk 0:02:58]}  Bxc5 {[%clk 0:02:54]} 8. Nxf5 {[%clk 0:02:58]}  exf5 {[%clk 0:02:54]} 9. c3 {[%clk 0:02:59]}  O-O {[%clk 0:02:50]} 10. Be2 {[%clk 0:02:59]}  h6 {[%clk 0:02:48]} 11. h4 {[%clk 0:02:51]}  Bd6 {[%clk 0:02:46]} 12. Bxd6 {[%clk 0:02:47]}  Qxd6 {[%clk 0:02:46]} 13. g3 {[%clk 0:02:47]}  Rfe8 {[%clk 0:02:46]} 14. Qc2 {[%clk 0:02:45]}  Ne4 {[%clk 0:02:41]} 15. Nxe4 {[%clk 0:02:29]}  dxe4 {[%clk 0:02:41]} 16. Rd1 {[%clk 0:02:21]}  Qe6 {[%clk 0:02:40]} 17. Qb3 {[%clk 0:02:19]}  Qe7 {[%clk 0:02:36]} 18. Kf1 {[%clk 0:02:04]}  Ne5 {[%clk 0:02:34]} 19. Kg2 {[%clk 0:02:03]}  Rac8 {[%clk 0:02:29]} 20. Rd5 {[%clk 0:01:57]}  Rc6 {[%clk 0:02:28]} 21. Rhd1 {[%clk 0:01:37]}  Rb6 {[%clk 0:02:28]} 22. Rb5 {[%clk 0:01:28]}  Rxb5 {[%clk 0:02:23]} 23. Qxb5 {[%clk 0:01:29]}  g6 {[%clk 0:02:12]} 24. Qd5 {[%clk 0:01:24]}  Kg7 {[%clk 0:02:04]} 25. Qd6 {[%clk 0:01:23]}  Qxd6 {[%clk 0:02:00]} 26. Rxd6 {[%clk 0:01:24]}  Re6 {[%clk 0:02:00]} 27. Rxe6 {[%clk 0:01:17]}  fxe6 {[%clk 0:01:59]} 28. Kf1 {[%clk 0:01:18]}  Kf6 {[%clk 0:01:54]} 29. Ke1 {[%clk 0:01:18]}  g5 {[%clk 0:01:43]} 30. hxg5+ {[%clk 0:01:19]}  Kxg5 {[%clk 0:01:44]} 31. c4 {[%clk 0:01:14]}  h5 {[%clk 0:01:40]} 32. c5 {[%clk 0:01:10]}  a5 {[%clk 0:01:27]} 33. a3 {[%clk 0:01:03]}  a4 {[%clk 0:01:21]} 34. Bb5 {[%clk 0:01:03]}  Nd3+ {[%clk 0:01:21]} 35. Bxd3 {[%clk 0:00:51]}  exd3 {[%clk 0:01:21]} 36. Kd2 {[%clk 0:00:51]}  Kg4 {[%clk 0:01:21]} 37. Kxd3 {[%clk 0:00:46]}  Kf3 {[%clk 0:01:21]} 38. b4 {[%clk 0:00:38]}  axb3 {[%clk 0:01:20]} 39. a4 {[%clk 0:00:38]}  b2 {[%clk 0:00:53]} 40. Kc2 {[%clk 0:00:38]}  Ke4 {[%clk 0:00:54]} 41. c6 {[%clk 0:00:33]}  bxc6 {[%clk 0:00:52]} 42. a5 {[%clk 0:00:34]}  Kf3 {[%clk 0:00:19]} 43. a6 {[%clk 0:00:33]}  Kxf2 {[%clk 0:00:20]} 44. a7 {[%clk 0:00:33]}  Kxe3 {[%clk 0:00:15]} 45. a8=Q {[%clk 0:00:33]}  e5 {[%clk 0:00:15]} 46. Qxc6 {[%clk 0:00:32]}  f4 {[%clk 0:00:15]} 47. gxf4 {[%clk 0:00:29]}  exf4 {[%clk 0:00:15]} 48. Qc5+ {[%clk 0:00:29]}  Ke2 {[%clk 0:00:14]} 49. Qe5+ {[%clk 0:00:27]}  Kf3 {[%clk 0:00:14]} 50. Kxb2 {[%clk 0:00:25]}  h4 {[%clk 0:00:14]} 51. Kc2 {[%clk 0:00:25]}  h3 {[%clk 0:00:14]} 52. Kd3 {[%clk 0:00:19]}  h2 {[%clk 0:00:12]} 53. Qh5+ {[%clk 0:00:16]}  Kg2 {[%clk 0:00:11]} 54. Qg4+ {[%clk 0:00:13]}  Kf2 {[%clk 0:00:09]} 55. Qxf4+ {[%clk 0:00:09]}  Kg2 {[%clk 0:00:08]} 56. Ke2 {[%clk 0:00:06]}  h1=Q {[%clk 0:00:07]} 57. Qg4+ {[%clk 0:00:06]}  Kh2 {[%clk 0:00:07]} 58. Kf2 {[%clk 0:00:06]}  Qf3+ {[%clk 0:00:05]} 59. Kxf3 {[%clk 0:00:05]} 1-0


[Site "https://www.chess.com"]